bitfinex/quotes_SOLUSD_20250313
["timestamp","ask_amount","ask_price","bid_price","bid_amount"]
[1741907272631,25.28108779,124.52,124.47,33.31508779]
[1741907273152,25.28108779,124.52,124.47,53.40018779]
[1741907273637,25.28108779,124.52,124.48,25.28108779]
[1741907273947,25.28108779,124.52,124.47,33.31508779]
[1741907274153,25.28108779,124.52,124.47,53.40018779]
[1741907274329,25.28108779,124.53,124.48,25.28108779]
[1741907274737,25.28108779,124.54,124.49,25.28108779]
[1741907275142,25.28108779,124.54,124.5,8.0321]
[1741907275335,25.28108779,124.55,124.5,33.31318779]
[1741907275649,25.28108779,124.54,124.5,8.0321]
[1741907276050,25.28108779,124.53,124.5,8.0321]
[1741907276251,33.30938779,124.56,124.5,8.0321]
[1741907276555,25.28108779,124.53,124.49,8.0327]
[1741907276756,25.28108779,124.53,124.49,33.31378779]
[1741907277758,25.28108779,124.56,124.5,25.28108779]
[1741907277759,25.28108779,124.55,124.5,25.28108779]
[1741907278538,25.28108779,124.54,124.49,33.31378779]
[1741907278739,25.28108779,124.54,124.49,53.39568779]
[1741907280059,25.28108779,124.54,124.49,33.31378779]
[1741907280748,0.03,124.53,124.49,33.31378779]
[1741907281855,0.03,124.53,124.5,25.28108779]
[1741907282657,0.03,124.53,124.52,33.31188779]
[1741907285249,0.03,124.53,124.49,81.0]
[1741907285445,25.28108779,124.52,124.48,1.5977]
[1741907285671,25.28108779,124.51,124.47,6.5728]
[1741907285858,25.28108779,124.52,124.47,31.85388779]
[1741907287048,33.31188779,124.52,124.47,31.85388779]
[1741907287543,25.28108779,124.51,124.45,1.781936]
[1741907287743,8.0308,124.52,124.45,1.781936]
[1741907287744,25.28108779,124.49,124.45,0.144336]
[1741907288079,25.28108779,124.46,124.45,0.144336]
[1741907289466,33.31578779,124.46,124.45,0.144336]
[1741907290470,40.82011093,124.46,124.45,3.6e-05]
[1741907290666,66.10119872,124.46,124.45,3.6e-05]
[1741907290843,67.60369872,124.46,124.45,3.6e-05]
[1741907292249,42.32261093,124.46,124.45,3.6e-05]
[1741907293674,67.60369872,124.46,124.45,3.6e-05]
[1741907293852,18.933972,124.45,124.37,212.56]
[1741907294054,25.28108779,124.4,124.37,212.56]
[1741907294269,25.28108779,124.41,124.37,212.56]
[1741907294865,25.28108779,124.41,124.37,237.84108779]
[1741907295253,101.033972,124.45,124.37,237.84108779]
[1741907295254,25.28108779,124.42,124.37,245.88138779]
[1741907296669,25.28108779,124.41,124.37,245.88138779]
[1741907296877,25.28108779,124.41,124.37,237.84108779]
[1741907297480,25.28108779,124.41,124.37,212.56]
[1741907297692,25.28108779,124.39,124.37,212.56]
[1741907297985,25.28108779,124.38,124.36,0.2718891]
[1741907300283,25.28108779,124.38,124.36,8.3129891]
[1741907300471,7.2,124.42,124.36,8.3129891]
[1741907300684,25.28108779,124.4,124.36,8.3129891]
[1741907302382,25.28108779,124.39,124.36,8.3129891]
[1741907303482,25.28108779,124.4,124.36,8.3129891]
[1741907303787,25.28108779,124.4,124.36,33.59407689]
[1741907304085,32.46108779,124.41,124.36,33.59407689]
[1741907304860,32.46108779,124.41,124.36,53.69697689]
[1741907305067,7.18,124.41,124.37,25.28108779]
[1741907305369,25.28108779,124.42,124.37,25.28108779]
[1741907305568,25.28108779,124.42,124.38,33.32088779]
[1741907306059,82.1,124.45,124.39,25.28108779]
[1741907306259,25.28108779,124.44,124.39,25.28108779]
[1741907306561,25.28108779,124.43,124.39,25.28108779]
[1741907306869,25.28108779,124.43,124.38,41.55208779]
[1741907308081,33.31788779,124.43,124.38,33.51228779]
[1741907308273,25.28108779,124.42,124.38,33.51228779]
[1741907308460,25.28108779,124.42,124.38,41.55198779]
[1741907309572,25.28108779,124.42,124.38,16.2709]
[1741907310365,25.28108779,124.43,124.38,41.55198779]
[1741907311984,25.28108779,124.43,124.39,25.28108779]
[1741907312486,25.28108779,124.44,124.39,25.28108779]
[1741907312687,25.28108779,124.44,124.4,25.28108779]
[1741907313481,25.28108779,124.44,124.4,33.31908779]
[1741907314280,8.0354,124.45,124.4,33.31908779]
[1741907314281,25.28108779,124.45,124.4,33.31908779]
[1741907314867,25.28108779,124.44,124.4,33.31908779]
[1741907315068,25.28108779,124.44,124.4,25.28108779]
[1741907315569,33.31708779,124.44,124.4,25.28108779]
[1741907316087,33.31708779,124.44,124.39,33.31998779]
[1741907316694,33.34658779,124.45,124.4,25.28108779]
[1741907317103,25.28108779,124.44,124.39,33.31998779]
[1741907317992,33.31738779,124.44,124.39,33.31998779]
[1741907318168,25.28108779,124.43,124.38,41.61478779]
[1741907318383,25.28108779,124.42,124.38,8.2942]
[1741907318712,25.28108779,124.42,124.38,16.3339]
[1741907319506,25.28108779,124.42,124.38,8.2942]
[1741907319895,25.28108779,124.41,124.38,8.2942]
[1741907320604,33.31738779,124.44,124.39,25.28108779]
[1741907320789,33.34668779,124.45,124.4,25.28108779]
[1741907320989,33.34668779,124.45,124.41,25.28108779]
[1741907321694,0.03,124.45,124.41,25.28108779]
[1741907321888,33.34648779,124.45,124.41,25.28108779]
[1741907322894,33.34648779,124.45,124.41,33.31888779]
[1741907323296,0.03,124.45,124.42,25.28108779]
[1741907323500,0.03,124.45,124.43,25.28108779]
[1741907323809,0.03,124.45,124.43,26.81108779]
[1741907323998,0.03,124.45,124.43,1.53]
[1741907326392,25.31108779,124.45,124.41,25.28108779]
[1741907326593,25.28108779,124.44,124.4,26.85418779]
[1741907326793,25.28108779,124.44,124.4,1.5731]
[1741907327515,25.28108779,124.43,124.4,1.5731]
[1741907328193,33.31738779,124.44,124.4,1.5731]
[1741907329299,33.31738779,124.44,124.4,9.6116]
[1741907329492,33.31738779,124.44,124.4,1.5731]
[1741907329999,33.31808779,124.43,124.4,1.5731]
[1741907331392,25.28108779,124.43,124.4,1.5731]
[1741907331612,33.31718779,124.44,124.4,9.6116]
[1741907331808,25.28108779,124.43,124.4,9.6116]
[1741907332306,25.28108779,124.43,124.4,1.5731]
[1741907332515,33.31718779,124.44,124.4,1.5731]
[1741907333107,32.45108779,124.45,124.4,34.89248779]
[1741907333410,25.31108779,124.45,124.4,34.89248779]
[1741907335527,0.03,124.45,124.41,25.28108779]
[1741907336927,0.03,124.45,124.42,25.28108779]
[1741907339013,0.03,124.45,124.43,8.0366]
[1741907340018,0.03,124.45,124.43,33.31768779]
[1741907340322,0.03,124.45,124.44,25.28108779]
[1741907340911,0.03,124.45,124.44,42.04648779]
[1741907344305,0.03,124.45,124.44,67.46973715]
[1741907344907,0.03,124.45,124.44,60.98045979]
[1741907346501,25.28108779,124.51,124.44,82.27520887]
[1741907346821,0.0897,124.53,124.49,25.28108779]
[1741907347019,0.0897,124.53,124.5,25.28108779]
[1741907347327,0.0897,124.53,124.51,25.28108779]
[1741907347628,0.0897,124.53,124.5,25.28108779]
[1741907347801,0.0897,124.53,124.51,25.28108779]
[1741907348221,0.0897,124.53,124.52,8.0308]
[1741907350330,0.0897,124.53,124.5,237.90108779]
[1741907350822,0.0897,124.53,124.5,245.93298779]
[1741907352720,0.0897,124.53,124.51,25.28108779]
[1741907352920,0.03,124.53,124.51,25.28108779]
[1741907353121,0.03,124.53,124.5,266.01328779]
[1741907354628,0.03,124.53,124.51,25.28108779]
[1741907355017,0.03,124.53,124.5,245.93298779]
[1741907356121,0.03,124.53,124.51,25.28108779]
[1741907356617,0.03,124.53,124.51,8.0311]
[1741907360317,0.03,124.53,124.51,24.16933222]
[1741907360517,0.03,124.53,124.51,8.0311]
[1741907360734,0.03,124.53,124.51,24.16933222]
[1741907365422,0.03,124.53,124.52,16.13823222]
[1741907365628,0.03,124.53,124.52,24.16903222]
[1741907365933,0.0001,124.53,124.52,50.30300422]
[1741907366837,0.0001,124.53,124.52,56.70990422]
[1741907367832,0.0001,124.53,124.52,137.70990422]
[1741907369648,0.0001,124.54,124.53,0.14216157]
[1741907369848,0.0001,124.54,124.53,25.51423785]
[1741907370330,0.0001,124.54,124.53,27.14183785]
[1741907371041,0.0001,124.54,124.53,27.28399942]
[1741907371622,0.0001,124.54,124.53,26.08025536]
[1741907371824,0.0001,124.54,124.53,109.591672]
[1741907372050,0.0001,124.54,124.53,125.72990422]
[1741907372435,0.0001,124.54,124.53,106.93809379]
[1741907372843,0.0001,124.54,124.53,81.0]
[1741907373347,0.0001,124.54,124.53,97.13823222]
[1741907373945,0.0001,124.54,124.53,105.16833222]
[1741907376134,0.0001,124.54,124.53,125.16418457]
[1741907376733,0.0001,124.54,124.53,337.64418457]
[1741907376931,0.0001,124.54,124.53,336.44014265]
[1741907377450,0.0001,124.54,124.53,336.50314265]
[1741907377643,0.0301,124.54,124.53,336.50314265]
[1741907378432,0.0001,124.54,124.53,336.50314265]
[1741907378754,0.0001,124.54,124.53,336.64530422]
[1741907378963,0.0001,124.54,124.53,481.48650422]
[1741907381955,0.0001,124.54,124.53,344.48650422]
[1741907384343,0.0001,124.54,124.53,353.54122202]
[1741907385254,1.6557,124.62,124.54,18.933972]
[1741907385440,1.6557,124.62,124.59,25.19295002]
[1741907385841,1.6557,124.62,124.58,25.47727316]
[1741907386335,1.6557,124.62,124.58,25.19295002]
[1741907386548,26.84865002,124.62,124.58,25.19295002]
[1741907387058,1.6557,124.62,124.59,8.0263]
[1741907387239,26.84865002,124.62,124.59,8.0263]
[1741907387442,34.87315002,124.62,124.57,32.43295002]
[1741907387632,34.87315002,124.62,124.54,263.26665002]
[1741907387633,25.19295002,124.59,124.54,263.26665002]
[1741907387840,25.19295002,124.59,124.55,8.0289]
[1741907388164,25.19295002,124.58,124.55,8.0289]
[1741907388534,25.19295002,124.59,124.55,8.0289]
[1741907389142,33.21935002,124.59,124.55,8.0289]
[1741907389345,25.19295002,124.56,124.53,212.543]
[1741907389544,25.19295002,124.54,124.53,212.543]
[1741907390651,25.19295002,124.54,124.53,0.063]
[1741907391260,25.19295002,124.55,124.53,0.063]
[1741907392166,25.19295002,124.54,124.53,0.063]
[1741907393267,25.19295002,124.55,124.53,0.063]
[1741907393952,26.72815002,124.57,124.53,0.063]
[1741907395766,25.19295002,124.58,124.53,25.25595002]
[1741907395954,25.19295002,124.59,124.54,25.19295002]
[1741907396347,25.19295002,124.59,124.53,0.063]
[1741907396348,33.00785002,124.6,124.55,25.19295002]
[1741907396861,25.19295002,124.61,124.56,33.22115002]
[1741907398570,25.19295002,124.6,124.56,33.22115002]
[1741907399145,82.13,124.62,124.56,8.0282]
[1741907399146,25.19295002,124.59,124.56,8.0282]
[1741907400466,82.13,124.62,124.56,53.29175002]
[1741907400640,25.19295002,124.61,124.57,25.19295002]
[1741907400842,25.22295002,124.62,124.57,25.19295002]
[1741907402667,25.22295002,124.62,124.58,8.0269]
[1741907403556,25.19295002,124.62,124.58,8.0269]
[1741907403762,25.19295002,124.66,124.61,25.19295002]
[1741907404361,25.19295002,124.66,124.62,25.19295002]
[1741907404771,25.19295002,124.66,124.63,8.0237]
[1741907405266,25.19295002,124.66,124.62,25.19295002]
[1741907405267,25.19295002,124.65,124.62,8.0242]
[1741907405477,25.19295002,124.63,124.59,1.6282]
[1741907405776,25.19295002,124.61,124.57,31.71685002]
[1741907406154,25.19295002,124.61,124.56,26.75175002]
[1741907406460,25.19295002,124.6,124.56,26.75175002]
[1741907407050,25.19295002,124.58,124.55,7.2]
[1741907407547,25.19295002,124.57,124.54,0.063]
[1741907407867,7.2,124.61,124.54,0.063]
[1741907407868,25.19295002,124.55,124.54,0.063]
[1741907410353,1.5356,124.58,124.54,0.063]
[1741907410557,25.19295002,124.57,124.54,0.063]
[1741907410951,25.19295002,124.59,124.55,25.19295002]
[1741907411353,25.19295002,124.59,124.54,33.28505002]
[1741907411768,25.19295002,124.59,124.55,25.19295002]
[1741907411963,25.19295002,124.61,124.56,25.19295002]
[1741907412156,25.19295002,124.6,124.55,0.28432314]
[1741907412363,25.19295002,124.6,124.55,25.47727316]
[1741907412670,25.19295002,124.6,124.55,25.19295002]
[1741907412851,25.19295002,124.6,124.56,25.47727316]
[1741907413055,25.19295002,124.61,124.56,25.47727316]
[1741907413268,25.19295002,124.61,124.57,33.22055002]
[1741907413469,25.19295002,124.62,124.58,25.19295002]
[1741907413851,25.19295002,124.63,124.58,25.19295002]
[1741907414052,107.29295002,124.65,124.6,25.19295002]
[1741907414252,40.28785236,124.65,124.6,40.28785236]
[1741907415253,40.28785236,124.65,124.6,48.31285236]
[1741907415468,40.28785236,124.66,124.61,40.28785236]
[1741907415672,40.28785236,124.66,124.62,40.28785236]
[1741907416068,40.28785236,124.66,124.61,40.28785236]
[1741907417172,40.28785236,124.66,124.62,40.28785236]
[1741907417351,40.28785236,124.67,124.63,8.0237]
[1741907419175,40.28785236,124.66,124.63,8.0237]
[1741907419482,40.28785236,124.65,124.62,8.0241]
[1741907419862,40.28785236,124.65,124.6,148.55205236]
[1741907419863,40.28785236,124.64,124.6,55.51325236]
[1741907420062,40.28785236,124.63,124.6,8.0254]
[1741907420565,40.28785236,124.64,124.6,8.0254]
[1741907421177,40.28785236,124.64,124.6,48.31325236]
[1741907421583,40.28785236,124.64,124.6,8.0254]
[1741907424286,8.0231,124.64,124.59,212.42]
[1741907424464,40.28785236,124.6,124.54,0.063]
[1741907424665,40.28785236,124.56,124.54,0.063]
[1741907425470,40.28785236,124.57,124.54,0.063]
[1741907425970,40.28785236,124.56,124.54,0.063]
[1741907426896,40.28785236,124.55,124.54,0.063]
[1741907427062,40.43001393,124.55,124.54,0.063]
[1741907427263,59.07966279,124.55,124.54,0.063]
[1741907427681,67.10856279,124.55,124.54,0.063]
[1741907428070,73.90262436,124.55,124.54,0.063]
[1741907428387,73.90262436,124.55,124.53,0.063]
[1741907428388,18.79181043,124.54,124.53,0.063]
[1741907428696,20.0,124.51,124.45,0.063]
[1741907428896,40.28785236,124.46,124.45,0.063]
[1741907430770,48.32255236,124.46,124.45,0.063]
[1741907430978,40.28785236,124.46,124.45,0.063]
[1741907432090,48.32255236,124.46,124.45,0.063]
[1741907432294,88.61040472,124.46,124.44,0.063]
[1741907432603,88.25570472,124.45,124.44,0.063]
[1741907432908,47.96785236,124.45,124.44,0.063]
[1741907433995,56.00315236,124.45,124.44,0.063]
[1741907434198,96.29100472,124.45,124.44,0.063]
[1741907434738,56.00315236,124.45,124.44,0.063]
[1741907435007,115.08281515,124.45,124.44,0.063]
[1741907435584,156.64216157,124.42,124.41,0.063]
[1741907435779,6.9045,124.41,124.4,0.063]
[1741907435983,46.83101043,124.39,124.38,0.063]
[1741907436184,135.42671515,124.39,124.38,0.063]
[1741907437411,103.111972,124.38,124.36,0.2718891]
[1741907437592,59.07966279,124.37,124.36,0.2718891]
[1741907437793,40.28785236,124.37,124.36,0.2718891]
[1741907438186,40.28785236,124.38,124.36,0.2718891]
[1741907438624,40.28785236,124.4,124.36,0.2718891]
[1741907438926,40.28785236,124.38,124.36,0.2718891]
[1741907439497,40.28785236,124.37,124.36,0.2718891]
[1741907441629,40.28785236,124.38,124.36,0.2718891]
[1741907441918,82.1,124.41,124.36,40.55974146]
[1741907442099,40.28785236,124.44,124.36,8.3126891]
[1741907442100,40.28785236,124.4,124.36,8.3126891]
[1741907443704,40.28785236,124.39,124.36,8.3126891]
[1741907444718,40.28785236,124.41,124.36,48.60054146]
[1741907444929,40.28785236,124.42,124.37,40.28785236]
[1741907445421,40.28785236,124.43,124.37,40.28785236]
[1741907445600,40.28785236,124.43,124.38,40.28785236]
[1741907446117,40.28785236,124.43,124.37,40.28785236]
[1741907446319,40.28785236,124.42,124.37,40.28785236]
[1741907447021,40.28785236,124.42,124.38,8.0398]
[1741907447218,40.28785236,124.39,124.36,0.2718891]
[1741907447395,40.28785236,124.38,124.36,0.2718891]
[1741907447801,40.28785236,124.4,124.36,8.3128891]
[1741907448209,40.28785236,124.41,124.36,8.3128891]
[1741907448531,40.28785236,124.39,124.36,0.2718891]
[1741907448713,40.28785236,124.38,124.36,0.2718891]
[1741907450005,40.28785236,124.39,124.36,0.2718891]
[1741907451702,40.28785236,124.41,124.36,48.60084146]
[1741907452325,40.28785236,124.4,124.36,8.3129891]
[1741907453914,40.28785236,124.41,124.36,48.60084146]
[1741907454113,48.32535236,124.42,124.36,48.60084146]
[1741907454315,40.28785236,124.41,124.36,48.60084146]
[1741907454523,8.0375,124.42,124.36,48.60084146]
[1741907454817,40.28785236,124.41,124.36,48.60084146]
[1741907455023,40.28785236,124.41,124.36,8.3129891]
[1741907455214,40.28785236,124.42,124.36,48.60084146]
[1741907455626,40.28785236,124.41,124.36,48.60084146]
[1741907456035,40.28785236,124.41,124.36,8.3129891]
[1741907456612,48.32585236,124.41,124.36,8.3129891]
[1741907457268,40.28785236,124.41,124.36,8.3129891]
[1741907457439,40.28785236,124.41,124.36,48.60084146]
[1741907457630,40.28785236,124.41,124.36,8.3129891]
[1741907457631,48.32595236,124.41,124.36,8.3129891]
[1741907457822,48.32595236,124.41,124.36,0.2718891]
[1741907457823,40.28785236,124.39,124.36,0.2718891]
[1741907459042,48.32685236,124.4,124.36,0.2718891]
[1741907460143,48.32605236,124.41,124.36,8.3129891]
[1741907460341,40.31785236,124.43,124.37,46.45785236]
[1741907460545,8.0668,124.43,124.37,46.45785236]
[1741907460735,40.31785236,124.43,124.38,8.0398]
[1741907461053,0.03,124.43,124.38,8.0398]
[1741907461239,0.03,124.43,124.39,0.28432314]
[1741907461556,0.03,124.43,124.42,59.22182436]
[1741907461846,0.03,124.46,124.44,0.28432314]
[1741907462023,0.03,124.46,124.45,40.28785236]
[1741907462418,0.03,124.46,124.45,40.5721755]
[1741907462615,0.03,124.46,124.45,48.32315236]
[1741907463030,0.03,124.46,124.45,48.6074755]
[1741907464643,40.28785236,124.53,124.46,0.14216157]
[1741907464849,40.28785236,124.54,124.49,48.16145236]
[1741907465041,40.28785236,124.52,124.47,48.26785236]
[1741907465628,40.28785236,124.54,124.49,40.28785236]
[1741907466249,40.28785236,124.55,124.5,40.28785236]
[1741907466546,0.03,124.56,124.47,26.62964886]
[1741907466547,40.28785236,124.53,124.48,40.5721755]
[1741907466749,40.28785236,124.52,124.47,48.26785236]
[1741907466919,40.28785236,124.51,124.47,7.98]
[1741907467123,40.28785236,124.52,124.47,56.30185236]
[1741907468031,40.28785236,124.53,124.49,40.28785236]
[1741907468553,40.31785236,124.56,124.49,40.28785236]
[1741907468554,40.28785236,124.54,124.49,40.28785236]
[1741907468755,40.28785236,124.55,124.5,48.31955236]
[1741907469855,40.28785236,124.54,124.5,8.0317]
[1741907470059,40.28785236,124.54,124.49,48.32035236]
[1741907470441,20.0845,124.66,124.55,0.28432314]
[1741907470638,40.28785236,124.6,124.55,48.22785236]
[1741907470830,40.28785236,124.6,124.55,7.94]
[1741907471229,40.28785236,124.6,124.55,48.22785236]
[1741907471754,27.9961,124.65,124.56,40.28785236]
[1741907471931,40.28785236,124.61,124.56,40.28785236]
[1741907473048,40.28785236,124.61,124.56,48.31555236]
[1741907473752,40.28785236,124.63,124.58,40.28785236]
[1741907474240,40.28785236,124.64,124.59,40.28785236]
[1741907474853,40.28785236,124.62,124.57,40.28785236]
[1741907475234,40.28785236,124.61,124.57,8.0271]
[1741907475442,40.28785236,124.62,124.57,48.31495236]
[1741907475742,0.03,124.61,124.57,48.31495236]
[1741907475951,40.31785236,124.61,124.57,8.0271]
[1741907476157,40.31785236,124.61,124.56,56.21575236]
[1741907476561,40.31785236,124.61,124.56,15.9279]
[1741907476865,40.31785236,124.61,124.56,56.21575236]
[1741907477052,40.28785236,124.57,124.54,1.5818]
[1741907477273,40.28785236,124.55,124.53,6.3836]
[1741907477435,40.28785236,124.54,124.5,228.931]
[1741907477846,40.28785236,124.55,124.5,269.21885236]
[1741907478454,48.31675236,124.55,124.5,269.21885236]
[1741907478847,40.28785236,124.55,124.5,269.21885236]
[1741907479572,48.31685236,124.55,124.5,269.21885236]
[1741907479747,40.28785236,124.51,124.47,8.1439]
[1741907479942,40.28785236,124.49,124.47,8.1439]
[1741907480152,8.029,124.55,124.47,8.1439]
[1741907480153,40.28785236,124.5,124.47,8.1439]
[1741907480354,40.28785236,124.51,124.47,16.1778]
[1741907481157,40.28785236,124.51,124.47,8.1439]
[1741907481544,40.28785236,124.52,124.47,56.46565236]
[1741907481863,40.28785236,124.52,124.47,48.43175236]
[1741907482167,40.28785236,124.51,124.47,8.1439]
[1741907482339,40.28785236,124.48,124.44,6.4571]
[1741907482542,40.28785236,124.45,124.41,54.78255236]
[1741907482841,40.28785236,124.48,124.43,40.28785236]
[1741907483043,40.28785236,124.47,124.43,40.28785236]
[1741907483466,40.28785236,124.48,124.43,40.28785236]
[1741907483764,40.28785236,124.47,124.42,40.28785236]
[1741907483966,40.28785236,124.48,124.43,40.28785236]
[1741907484552,40.28785236,124.46,124.41,54.78255236]
[1741907484752,40.28785236,124.47,124.42,40.28785236]
[1741907484950,40.28785236,124.48,124.43,40.28785236]
[1741907485266,82.1,124.52,124.44,40.28785236]
[1741907485572,82.1,124.6,124.51,40.28785236]
[1741907485749,122.38785236,124.6,124.55,40.28785236]
[1741907485952,40.28785236,124.6,124.55,40.28785236]
[1741907486447,40.31785236,124.61,124.56,40.28785236]
[1741907486960,40.28785236,124.57,124.52,8.0308]
[1741907487160,40.28785236,124.59,124.54,40.28785236]
[1741907487363,40.28785236,124.56,124.52,48.31865236]
[1741907487663,18.79181043,124.59,124.49,6.3654]
[1741907488037,40.28785236,124.54,124.49,46.65325236]
[1741907488665,40.28785236,124.54,124.49,54.68585236]
[1741907488873,40.28785236,124.57,124.52,40.28785236]
[1741907489169,40.28785236,124.55,124.5,40.28785236]
[1741907489962,40.28785236,124.56,124.51,40.28785236]
[1741907490173,40.28785236,124.53,124.49,6.3654]
[1741907490344,40.28785236,124.51,124.47,1.5807]
[1741907490544,40.28785236,124.49,124.46,6.0038]
[1741907490761,40.28785236,124.5,124.46,6.0038]
[1741907490947,40.28785236,124.52,124.47,40.28785236]
[1741907491153,40.28785236,124.53,124.48,40.28785236]
[1741907491545,40.28785236,124.52,124.47,40.28785236]
[1741907491865,40.28785236,124.53,124.48,40.28785236]
[1741907493263,40.28785236,124.53,124.48,48.32115236]
[1741907493652,8.76,124.55,124.46,46.29165236]
[1741907493851,40.28785236,124.51,124.46,87.0038]
[1741907494064,40.28785236,124.5,124.46,6.0038]
[1741907494374,40.28785236,124.49,124.46,6.0038]
[1741907494750,40.28785236,124.48,124.43,131.04235236]
[1741907494955,40.28785236,124.5,124.45,40.28785236]
[1741907495264,40.28785236,124.49,124.44,40.28785236]
[1741907495567,40.28785236,124.49,124.44,48.32355236]
[1741907495756,48.32085236,124.49,124.44,40.28785236]
[1741907496350,48.32085236,124.49,124.43,1.7181]
[1741907496351,40.28785236,124.47,124.43,1.7181]
[1741907496572,40.28785236,124.47,124.43,0.063]
[1741907496974,40.28785236,124.48,124.43,40.35085236]
[1741907497353,40.28785236,124.46,124.43,0.063]
[1741907497855,48.32195236,124.47,124.43,0.063]
[1741907498061,40.28785236,124.44,124.43,0.063]
[1741907499173,99.36751515,124.44,124.43,0.063]
[1741907499678,107.40351515,124.44,124.43,0.063]
[1741907501051,40.28785236,124.44,124.43,0.063]
[1741907501252,48.32385236,124.44,124.43,0.063]
[1741907501575,40.28785236,124.44,124.43,0.063]
[1741907502169,40.28785236,124.45,124.43,0.063]
[1741907502771,40.28785236,124.47,124.43,0.063]
[1741907503571,8.98,124.48,124.43,40.35085236]
[1741907503572,40.28785236,124.48,124.43,40.35085236]
[1741907503868,40.28785236,124.48,124.44,8.036]
[1741907504958,40.28785236,124.45,124.43,0.063]
[1741907505279,99.36751515,124.44,124.43,0.063]
[1741907505749,88.61170472,124.44,124.43,0.063]
[1741907505954,40.28785236,124.44,124.43,0.063]
[1741907508273,40.28785236,124.45,124.43,0.063]
[1741907508882,40.28785236,124.44,124.43,0.063]
[1741907510078,48.32385236,124.44,124.43,0.063]
[1741907510385,88.61170472,124.44,124.43,0.063]
[1741907510583,108.84386629,124.44,124.38,0.063]
[1741907510785,40.28785236,124.42,124.38,0.063]
[1741907510993,40.28785236,124.39,124.38,0.063]
[1741907511567,40.28785236,124.41,124.38,0.063]
[1741907511968,40.28785236,124.4,124.38,0.063]
[1741907512164,40.28785236,124.39,124.38,0.063]
[1741907513089,8.0366,124.43,124.38,0.063]
[1741907513090,40.28785236,124.4,124.38,0.063]
[1741907513488,40.28785236,124.41,124.38,0.063]
[1741907513693,40.28785236,124.42,124.38,0.063]
[1741907514390,40.28785236,124.43,124.38,48.39065236]
[1741907514583,90.1356,124.45,124.38,48.39065236]
[1741907514783,40.28785236,124.43,124.38,48.39065236]
[1741907515570,40.28785236,124.45,124.4,40.28785236]
[1741907516078,40.28785236,124.43,124.38,48.39065236]
[1741907516392,40.28785236,124.42,124.38,8.1028]
[1741907516595,40.28785236,124.43,124.38,48.39065236]
[1741907518604,40.28785236,124.44,124.38,48.39065236]
[1741907520206,48.32385236,124.44,124.38,48.39065236]
[1741907520492,40.28785236,124.4,124.38,0.063]
[1741907520700,40.28785236,124.39,124.38,0.063]
[1741907521007,77.35385236,124.44,124.38,0.063]
[1741907521183,40.28785236,124.4,124.38,0.063]
[1741907521979,48.32685236,124.4,124.38,0.063]
[1741907522782,40.28785236,124.4,124.38,0.063]
[1741907522984,40.28785236,124.42,124.38,0.063]
[1741907523478,40.28785236,124.4,124.38,0.063]
[1741907523684,40.28785236,124.41,124.38,0.063]
[1741907523885,8.0385,124.4,124.38,0.063]
[1741907524091,40.28785236,124.39,124.38,0.063]
[1741907525378,40.28785236,124.4,124.38,0.063]
[1741907525577,40.28785236,124.42,124.38,0.063]
[1741907525785,40.28785236,124.43,124.38,40.35085236]
[1741907525988,40.28785236,124.41,124.38,0.063]
[1741907526498,8.0377,124.42,124.38,0.063]
[1741907526499,40.28785236,124.42,124.38,0.063]
[1741907527002,40.28785236,124.41,124.38,0.063]
[1741907527702,40.28785236,124.42,124.38,0.063]
[1741907528111,40.28785236,124.4,124.38,0.063]
[1741907528602,40.28785236,124.41,124.38,0.063]
[1741907528905,40.28785236,124.42,124.38,0.063]
[1741907529290,40.28785236,124.41,124.38,0.063]
[1741907529609,40.28785236,124.42,124.38,0.063]
[1741907529988,40.28785236,124.43,124.38,48.39065236]
[1741907530884,40.28785236,124.42,124.38,8.1028]
[1741907531606,40.28785236,124.41,124.38,0.063]
[1741907532884,40.28785236,124.39,124.38,0.063]
[1741907533403,0.28432314,124.37,124.36,0.2718891]
[1741907533606,59.22182436,124.37,124.36,0.2718891]
[1741907533793,20.14216157,124.35,124.34,0.063]
[1741907533989,49.63001393,124.35,124.34,0.063]
[1741907534191,57.67181393,124.35,124.34,0.063]
[1741907534809,76.32146279,124.35,124.34,0.063]
[1741907535287,20.0,124.33,124.32,0.063]
[1741907535486,60.28785236,124.33,124.32,0.063]
[1741907535885,20.0,124.33,124.32,0.063]
[1741907536082,18.79181043,124.38,124.32,8.1067]
[1741907536288,40.28785236,124.36,124.32,8.1067]